bitfinex/quotes_BTCUSD_20230901
["timestamp","ask_amount","ask_price","bid_price","bid_amount"]
[1693570869729,0.78597626,26129.0,26128.0,0.03322469]
[1693570869900,0.78567626,26129.0,26128.0,0.03322469]
[1693570870082,0.78459626,26129.0,26128.0,0.03322469]
[1693570870287,0.78471626,26129.0,26128.0,0.03322469]
[1693570870483,0.78483626,26129.0,26128.0,0.03322469]
[1693570870738,0.78501626,26129.0,26128.0,0.03322469]
[1693570871165,0.78531626,26129.0,26128.0,0.03322469]
[1693570871574,0.78519626,26129.0,26128.0,0.03322469]
[1693570871775,0.78537626,26129.0,26128.0,0.03322469]
[1693570872000,0.78555626,26129.0,26128.0,0.03322469]
[1693570872200,0.78777626,26129.0,26128.0,0.03322469]
[1693570872438,0.78867626,26129.0,26128.0,0.03322469]
[1693570872619,0.78861626,26129.0,26128.0,0.03322469]
[1693570872944,0.78837626,26129.0,26128.0,0.03322469]
[1693570873076,0.79041626,26129.0,26128.0,0.03322469]
[1693570873294,0.79131626,26129.0,26128.0,0.03322469]
[1693570873494,0.79179626,26129.0,26128.0,0.03322469]
[1693570873696,0.79173626,26129.0,26128.0,0.03322469]
[1693570874097,0.79167626,26129.0,26128.0,0.03322469]
[1693570874297,0.79173626,26129.0,26128.0,0.03322469]
[1693570874493,0.79191626,26129.0,26128.0,0.03322469]
[1693570874693,0.79203626,26129.0,26128.0,0.03322469]
[1693570875021,0.79197626,26129.0,26128.0,0.03322469]
[1693570875223,0.79515626,26129.0,26128.0,0.03322469]
[1693570875443,0.78879626,26129.0,26128.0,0.03322469]
[1693570875599,0.79125626,26129.0,26128.0,0.03322469]
[1693570875808,0.79215626,26129.0,26128.0,0.03322469]
[1693570876011,0.79281626,26129.0,26128.0,0.03322469]
[1693570876212,0.79365626,26129.0,26128.0,0.03322469]
[1693570876434,0.79407626,26129.0,26128.0,0.03322469]
[1693570876816,0.79323626,26129.0,26128.0,0.03322469]
[1693570876992,0.79425626,26129.0,26128.0,0.03322469]
[1693570877272,0.79335626,26129.0,26128.0,0.03322469]
[1693570877470,0.79077626,26129.0,26128.0,0.03322469]
[1693570877674,0.79095626,26129.0,26128.0,0.03322469]
[1693570877876,0.79203626,26129.0,26128.0,0.03322469]
[1693570878045,0.79209626,26129.0,26128.0,0.03322469]
[1693570878426,0.79233626,26129.0,26128.0,0.03322469]
[1693570878635,0.79161626,26129.0,26128.0,0.03322469]
[1693570878829,0.80319626,26129.0,26128.0,0.03322469]
[1693570879036,0.79647626,26129.0,26128.0,0.03322469]
[1693570879242,0.79131626,26129.0,26128.0,0.03322469]
[1693570879584,0.79095626,26129.0,26128.0,0.03322469]
[1693570879779,0.79101626,26129.0,26128.0,0.03322469]
[1693570880194,0.78999626,26129.0,26128.0,0.03322469]
[1693570880338,0.51646678,26129.0,26128.0,0.03322469]
[1693570880719,0.41708678,26129.0,26128.0,0.03322469]
[1693570881152,0.41708678,26129.0,26128.0,0.15062469]
[1693570881687,0.035,26129.0,26128.0,0.15062469]
[1693570882837,0.03392,26129.0,26128.0,0.15062469]
[1693570888943,0.42100678,26129.0,26128.0,0.15062469]
[1693570889119,0.42100678,26129.0,26128.0,0.03322469]
[1693570891501,0.42094678,26129.0,26128.0,0.03322469]
[1693570892492,0.42094678,26129.0,26128.0,0.09046786]
[1693570893282,0.03386,26129.0,26128.0,0.2478852]
[1693570893483,2.6394,26136.0,26128.0,1.0897382]
[1693570893484,0.04,26136.0,26128.0,1.0897382]
[1693570893703,1.49015142,26135.0,26131.0,0.1174]
[1693570894040,1.10306464,26134.0,26131.0,0.25481734]
[1693570894156,0.38708678,26133.0,26132.0,0.030473]
[1693570894758,0.38708678,26133.0,26130.0,0.20840718]
[1693570895380,0.38708678,26133.0,26131.0,0.003]
[1693570895581,0.38708678,26133.0,26130.0,0.20840718]
[1693570896211,0.38708678,26133.0,26131.0,0.003]
[1693570896212,0.42408678,26133.0,26131.0,0.003]
[1693570896613,0.42408678,26133.0,26130.0,0.21140718]
[1693570896825,0.037,26133.0,26132.0,0.02]
[1693570897034,0.074,26133.0,26132.0,0.65391077]
[1693570897254,0.074,26133.0,26132.0,1.10631998]
[1693570897455,0.037,26133.0,26132.0,1.10631998]
[1693570897656,0.074,26133.0,26132.0,1.19732859]
[1693570897866,0.037,26133.0,26132.0,1.19732859]
[1693570898044,0.037,26133.0,26132.0,1.19731944]
[1693570898271,0.04,26133.0,26132.0,1.38743544]
[1693570898478,1.0,26139.0,26132.0,1.38743544]
[1693570898479,1.0,26139.0,26135.0,0.02]
[1693570898692,0.26898521,26144.0,26135.0,0.02]
[1693570898693,1.13159408,26144.0,26136.0,0.15741734]
[1693570898897,1.13159408,26144.0,26137.0,0.3]
[1693570898898,0.38708678,26138.0,26137.0,0.3]
[1693570900049,0.38708678,26138.0,26136.0,0.32]
[1693570900498,0.39008678,26138.0,26136.0,0.32]
[1693570900672,0.39008678,26138.0,26136.0,0.5792]
[1693570902033,0.38708678,26138.0,26136.0,0.5792]
[1693570902209,0.40408678,26138.0,26136.0,0.5802]
[1693570902416,0.38708678,26137.0,26136.0,0.5602]
[1693570902644,0.82234434,26137.0,26136.0,0.001]
[1693570902849,0.83362434,26137.0,26136.0,0.001]
[1693570903055,0.82960434,26137.0,26136.0,0.001]
[1693570903275,0.82870434,26137.0,26136.0,0.001]
[1693570903471,0.82522434,26137.0,26136.0,0.001]
[1693570903677,0.82432434,26137.0,26136.0,0.007]
[1693570903888,1.19194678,26137.0,26136.0,0.007]
[1693570904090,2.41617576,26137.0,26136.0,0.007]
[1693570904298,2.41617576,26137.0,26136.0,0.006]
[1693570904299,1.30261167,26137.0,26136.0,0.006]
[1693570904541,1.29463167,26137.0,26136.0,0.008]
[1693570904743,1.29181167,26137.0,26136.0,0.006]
[1693570905053,1.29181167,26137.0,26136.0,0.009]
[1693570905054,1.33319167,26137.0,26136.0,0.009]
[1693570905479,1.29631167,26137.0,26136.0,0.006]
[1693570905798,1.32983167,26137.0,26136.0,0.003]
[1693570905979,1.33283167,26137.0,26136.0,0.006]
[1693570906175,1.33187167,26137.0,26136.0,0.006]
[1693570906380,1.33469167,26137.0,26136.0,0.003]
[1693570906554,1.33391167,26137.0,26136.0,0.003]
[1693570906760,1.33673167,26137.0,26136.0,0.006]
[1693570906966,1.33649167,26137.0,26136.0,0.006]
[1693570907140,1.33607167,26137.0,26136.0,0.006]
[1693570907346,1.33583167,26137.0,26136.0,0.006]
[1693570907549,1.33481167,26137.0,26136.0,0.006]
[1693570907752,0.42708678,26137.0,26136.0,0.006]
[1693570907969,0.42708678,26137.0,26136.0,0.28081734]
[1693570907970,0.04,26137.0,26136.0,0.28081734]
[1693570908193,0.04,26137.0,26136.0,0.47436101]
[1693570908686,0.037,26137.0,26136.0,0.47136101]
[1693570908868,0.04,26137.0,26136.0,0.47236101]
[1693570909074,0.003,26137.0,26136.0,0.46936101]
[1693570909472,0.09326,26143.0,26136.0,0.46836101]
[1693570909693,1.64358198,26142.0,26138.0,0.1174]
[1693570909830,0.54068678,26142.0,26138.0,0.25481734]
[1693570910038,0.54068678,26142.0,26138.0,0.13741734]
[1693570910239,0.09159408,26146.0,26141.0,0.1374]
[1693570910444,1.41217338,26148.0,26141.0,0.1374]
[1693570910445,2.0,26148.0,26144.0,0.02]
[1693570910650,1.0,26148.0,26147.0,0.1174]
[1693570910866,1.0,26148.0,26147.0,0.25481734]
[1693570911269,1.0,26148.0,26147.0,0.1174]
[1693570911469,1.0,26148.0,26147.0,0.270443]
[1693570912108,1.001,26148.0,26147.0,0.291443]
[1693570912354,0.996,26148.0,26147.0,0.291443]
[1693570912550,0.995,26148.0,26147.0,0.270443]
[1693570912754,0.997,26148.0,26147.0,0.307443]
[1693570912965,0.997,26148.0,26147.0,0.190043]
[1693570912966,1.33133655,26148.0,26147.0,0.190043]
[1693570913787,1.17492678,26148.0,26147.0,0.190043]
[1693570913947,2.69660465,26148.0,26147.0,0.227043]
[1693570914147,2.66744465,26148.0,26147.0,0.227043]
[1693570914324,2.66084465,26148.0,26147.0,0.227043]
[1693570914524,2.66030465,26148.0,26147.0,0.227043]
[1693570914731,2.53282465,26148.0,26147.0,0.227043]
[1693570915120,2.52674465,26148.0,26147.0,0.190043]
[1693570915322,2.53382465,26148.0,26147.0,0.153043]
[1693570915636,2.55534465,26148.0,26147.0,0.154043]
[1693570915842,2.55162465,26148.0,26147.0,0.154043]
[1693570916015,2.54856465,26148.0,26147.0,0.154043]
[1693570916222,2.27281966,26148.0,26147.0,0.154043]
[1693570916454,2.48878555,26148.0,26147.0,0.154043]
[1693570916658,2.68761966,26148.0,26147.0,0.154043]
[1693570916882,2.86041966,26148.0,26147.0,0.154043]
[1693570917085,2.85453966,26148.0,26147.0,0.154043]
[1693570917286,2.85339966,26148.0,26147.0,0.154043]
[1693570917463,2.85279966,26148.0,26147.0,0.001]
[1693570917613,2.85393966,26148.0,26147.0,0.001]
[1693570917821,3.12118701,26148.0,26147.0,0.001]
[1693570918021,3.11194701,26148.0,26147.0,0.001]
[1693570918275,3.11266701,26148.0,26147.0,0.001]
[1693570918492,3.10858701,26148.0,26147.0,0.001]
[1693570918672,3.09502701,26148.0,26147.0,0.001]
[1693570918827,3.09292701,26148.0,26147.0,0.001]
[1693570919041,3.09196701,26148.0,26147.0,0.001]
[1693570919222,3.09268701,26148.0,26147.0,0.001]
[1693570919424,3.08956701,26148.0,26147.0,0.001]
[1693570919687,2.27857966,26148.0,26147.0,0.001]
[1693570919895,2.20387966,26148.0,26147.0,0.001]
[1693570920313,2.20387966,26148.0,26147.0,0.03286882]
[1693570920675,2.41937089,26148.0,26147.0,0.03286882]
[1693570921886,2.20387966,26148.0,26147.0,0.03286882]
[1693570922521,2.46698371,26148.0,26147.0,0.03286882]
[1693570924165,2.20387966,26148.0,26147.0,0.03286882]
[1693570924803,0.714,26148.0,26147.0,0.15026882]
[1693570925003,0.714,26148.0,26147.0,0.03286882]
[1693570926575,1.44913385,26148.0,26147.0,0.03286882]
[1693570926767,1.44913385,26148.0,26147.0,0.06310992]
[1693570926768,2.47024795,26148.0,26147.0,0.06310992]
[1693570927582,2.47024795,26148.0,26147.0,0.0312411]
[1693570928623,2.20380088,26148.0,26147.0,0.0312411]
[1693570928832,0.1174,26151.0,26147.0,0.16865844]
[1693570929038,0.02,26158.0,26151.0,0.02]
[1693570929249,1.50023249,26157.0,26153.0,0.02]
[1693570929453,1.10251711,26156.0,26154.0,0.13741734]
[1693570929655,1.10251711,26156.0,26155.0,0.3]
[1693570930284,0.07956,26161.0,26156.0,0.02]
[1693570930491,0.50235015,26160.0,26157.0,0.13741734]
[1693570930699,0.1308,26164.0,26158.0,0.3]
[1693570930905,0.59139925,26163.0,26159.0,0.13741734]
[1693570931109,0.20431247,26162.0,26160.0,0.3]
[1693570931317,0.0199,26165.0,26162.0,0.02]
[1693570931526,0.0199,26165.0,26163.0,0.13741734]
[1693570931769,0.40698678,26165.0,26164.0,0.3]
[1693570931971,0.22412485,26165.0,26162.0,0.3]
[1693570932184,0.1174,26163.0,26162.0,0.3]
[1693570932610,0.1174,26163.0,26162.0,0.452973]
[1693570933252,0.1174,26163.0,26162.0,0.152973]
[1693570933456,0.1174,26163.0,26155.0,0.14853696]
[1693570933457,0.02,26162.0,26155.0,0.03113696]
[1693570933683,0.1174,26160.0,26155.0,0.03113696]
[1693570933893,0.15296733,26161.0,26155.0,0.1174]
[1693570934142,0.1174,26158.0,26154.0,0.1999]
[1693570934342,0.1174,26158.0,26156.0,0.03268569]
[1693570934764,0.1174,26157.0,26156.0,0.03268569]
[1693570935270,0.1174,26157.0,26156.0,0.33268569]
[1693570935936,0.85392657,26161.0,26156.0,0.33268569]
[1693570935937,0.1174,26159.0,26156.0,0.36968569]
[1693570936138,0.25528859,26158.0,26156.0,0.36968569]
[1693570936716,0.001,26157.0,26156.0,0.40668569]
[1693570937149,0.37268859,26158.0,26156.0,0.36968569]
[1693570937344,0.37268859,26158.0,26156.0,0.33268569]
[1693570937719,0.37268859,26158.0,26156.0,0.36968569]
[1693570937939,0.37268859,26158.0,26156.0,0.40668569]
[1693570937940,0.37368859,26158.0,26156.0,0.40668569]
[1693570938374,0.38007191,26158.0,26156.0,0.36968569]
[1693570938615,0.38007191,26158.0,26156.0,0.40668569]
[1693570938768,0.22818746,26157.0,26156.0,0.40668569]
[1693570939193,0.72778149,26157.0,26156.0,0.40668569]
[1693570939367,0.84926992,26157.0,26156.0,0.10668569]
[1693570939573,0.76356992,26157.0,26156.0,0.06968569]
[1693570939956,0.76456992,26157.0,26156.0,0.10668569]
[1693570940151,0.76356992,26157.0,26156.0,0.06968569]
[1693570940364,0.64616992,26157.0,26156.0,0.06968569]
[1693570940574,0.40508678,26157.0,26156.0,0.07268569]
[1693570941319,0.38708678,26157.0,26156.0,0.06968569]
[1693570941635,0.38708678,26157.0,26156.0,0.03268569]
[1693570941787,0.50448678,26157.0,26156.0,0.06968569]
[1693570942199,0.50448678,26157.0,26156.0,0.03268569]
[1693570942628,0.71520016,26157.0,26156.0,0.05268569]
[1693570942971,0.71520016,26157.0,26156.0,0.06568569]
[1693570944067,0.92758678,26157.0,26156.0,0.06568569]
[1693570944277,1.2063954,26157.0,26156.0,0.06568569]
[1693570944681,0.7832954,26157.0,26156.0,0.06568569]
[1693570947775,0.50448678,26157.0,26156.0,0.06568569]
[1693570947974,0.74500802,26157.0,26156.0,0.06568569]
[1693570948181,0.72467881,26157.0,26156.0,0.06568569]
[1693570948358,0.74467881,26157.0,26156.0,0.06568569]
[1693570948567,0.72467881,26157.0,26156.0,0.06568569]
[1693570948784,0.72467881,26157.0,26156.0,0.04568569]
[1693570949093,0.72867881,26157.0,26156.0,0.03268569]
[1693570949283,0.50848678,26157.0,26156.0,0.03268569]
[1693570949485,0.52048678,26157.0,26156.0,0.03268569]
[1693570949689,1.28137546,26157.0,26156.0,0.03268569]
[1693570949892,0.04,26156.0,26149.0,0.191]
[1693570950096,0.1174,26150.0,26145.0,0.12]
[1693570950460,0.15483471,26149.0,26145.0,0.1]
[1693570950745,0.38708678,26149.0,26144.0,0.206]
[1693570951147,0.38708678,26149.0,26144.0,0.186]
[1693570951148,0.50448678,26149.0,26144.0,0.186]
[1693570951355,0.50448678,26149.0,26148.0,0.20121]
[1693570951964,0.1174,26151.0,26148.0,0.46721]
[1693570952169,0.1174,26152.0,26149.0,0.003]
[1693570952375,0.50448678,26152.0,26148.0,0.47021]
[1693570952584,0.10966,26156.0,26149.0,0.3]
[1693570952792,0.50448678,26155.0,26150.0,0.13741734]
[1693570953199,0.1174,26153.0,26150.0,0.13741734]
[1693570953402,0.018,26152.0,26149.0,0.303]
[1693570953605,0.50448678,26153.0,26149.0,0.3]
[1693570954021,0.50448678,26153.0,26149.0,0.303]
[1693570954430,0.1174,26152.0,26149.0,0.303]
[1693570954634,0.1174,26152.0,26149.0,0.337]
[1693570954635,0.1174,26150.0,26149.0,0.337]
[1693570955044,0.1174,26150.0,26149.0,0.303]
[1693570955474,0.1174,26151.0,26149.0,0.32]
[1693570955876,0.1174,26151.0,26149.0,0.346]
[1693570956028,0.1174,26151.0,26149.0,0.32]
[1693570956873,0.001,26150.0,26149.0,0.337]
[1693570957257,0.5928645,26150.0,26149.0,0.337]
[1693570957615,0.38708678,26150.0,26149.0,0.337]
[1693570958579,0.38708678,26150.0,26149.0,0.374]
[1693570958809,0.38708678,26150.0,26149.0,0.337]
[1693570959210,0.38808678,26150.0,26149.0,0.374]
[1693570959429,0.62325984,26150.0,26149.0,0.374]
[1693570960805,0.62325984,26150.0,26149.0,0.074]
[1693570960806,0.74065984,26150.0,26149.0,0.074]
[1693570961008,0.80875984,26150.0,26149.0,0.074]
[1693570961182,0.74065984,26150.0,26149.0,0.074]
[1693570961788,0.73965984,26150.0,26148.0,0.16721]
[1693570962006,0.50448678,26149.0,26148.0,0.16721]
[1693570962214,0.50448678,26149.0,26148.0,0.46721]
[1693570963088,0.06582,26154.0,26148.0,0.60462734]
[1693570963296,0.1174,26157.0,26149.0,0.43741734]
[1693570963495,0.59176233,26156.0,26150.0,0.1174]
[1693570963699,0.59176233,26156.0,26149.0,0.43741734]
[1693570963700,0.1174,26154.0,26151.0,0.43741734]
[1693570963931,0.1174,26153.0,26149.0,0.4862]
[1693570964131,0.1174,26153.0,26149.0,0.302]
[1693570964340,0.1174,26154.0,26152.0,0.0318543]
[1693570964680,0.1174,26154.0,26149.0,0.302]
[1693570964886,0.27223471,26154.0,26149.0,0.302]
[1693570965204,0.27223471,26154.0,26149.0,0.3]
[1693570965205,0.1374,26154.0,26149.0,0.3]
[1693570965410,0.50448678,26153.0,26149.0,0.321]
[1693570965610,0.7181559,26153.0,26149.0,0.321]
[1693570965863,0.50448678,26153.0,26149.0,0.322]
[1693570966620,0.50448678,26153.0,26149.0,0.3]
[1693570966985,0.50548678,26153.0,26149.0,0.314]
[1693570967172,0.50548678,26153.0,26149.0,0.322]
[1693570967581,0.50548678,26153.0,26149.0,0.314]
[1693570967582,0.1174,26150.0,26149.0,0.314]
[1693570967989,0.3800631,26150.0,26149.0,0.314]
[1693570968139,0.76714988,26150.0,26149.0,0.314]
[1693570968359,0.76714988,26150.0,26149.0,0.335]
[1693570968759,0.76714988,26150.0,26149.0,0.321]
[1693570968984,0.76914988,26150.0,26149.0,0.358]
[1693570969772,0.76914988,26150.0,26149.0,0.337]
[1693570969972,0.76914988,26150.0,26149.0,0.374]
[1693570970579,0.06101899,26158.0,26154.0,0.02]
[1693570970957,0.3831638,26163.0,26155.0,0.54192149]
[1693570971166,0.18286371,26162.0,26156.0,0.45579]
[1693570971375,0.18286371,26162.0,26157.0,0.15483471]
[1693570971584,0.18286371,26162.0,26158.0,0.3]
[1693570971788,0.18286371,26162.0,26159.0,0.15483471]
[1693570971989,0.18286371,26162.0,26160.0,0.3]
[1693570972196,0.39870795,26164.0,26160.0,0.45483471]
[1693570972409,0.18289179,26163.0,26161.0,0.15483471]
[1693570972612,0.18289179,26163.0,26162.0,0.3]
[1693570972613,0.23201293,26163.0,26162.0,0.3]
[1693570972819,0.41490491,26163.0,26160.0,0.3]
[1693570973024,0.156,26161.0,26160.0,0.3]
[1693570973664,0.156,26161.0,26157.0,0.033]
[1693570973869,0.156,26159.0,26155.0,0.3]
[1693570974093,0.54308678,26159.0,26152.0,0.3]
[1693570974308,0.156,26157.0,26152.0,0.3]
[1693570974535,0.156,26157.0,26150.0,0.3]
[1693570974536,0.54308678,26157.0,26150.0,0.3]
[1693570974736,0.54308678,26157.0,26151.0,0.12]
[1693570974937,0.54308678,26157.0,26152.0,0.3]
[1693570975257,0.38708678,26156.0,26152.0,0.3]
[1693570975456,0.38708678,26156.0,26152.0,0.337]
[1693570975660,0.58967614,26156.0,26152.0,0.337]
[1693570976126,0.58967614,26156.0,26152.0,0.037]
[1693570976339,0.58967614,26156.0,26150.0,0.477]
[1693570976537,0.1579,26157.0,26152.0,0.177]
[1693570976750,0.1579,26157.0,26153.0,0.3]
[1693570976975,0.1579,26157.0,26153.0,0.45483471]
[1693570977208,0.1579,26157.0,26153.0,0.3]
[1693570977652,0.1579,26157.0,26153.0,0.452996]
[1693570977886,0.2355,26158.0,26153.0,0.452996]
[1693570978104,0.2355,26158.0,26153.0,0.64483071]
[1693570978776,0.2355,26158.0,26153.0,0.526996]
[1693570978982,0.24226844,26157.0,26153.0,0.526996]
[1693570979230,0.24226844,26157.0,26153.0,0.489996]
[1693570979463,0.24226844,26157.0,26154.0,0.03062097]
[1693570980975,0.62935522,26157.0,26154.0,0.05062097]
[1693570981181,0.38708678,26156.0,26154.0,0.05062097]
[1693570981564,0.54308678,26156.0,26154.0,0.05062097]
[1693570982141,0.54308678,26156.0,26154.0,0.02]
[1693570982349,0.54308678,26156.0,26154.0,0.024]
[1693570982554,0.54308678,26156.0,26153.0,0.152996]
[1693570982555,0.38708678,26156.0,26153.0,0.152996]
[1693570982761,0.2390047,26157.0,26153.0,0.152996]
[1693570982979,0.62609148,26157.0,26154.0,0.3]
[1693570983188,0.62209148,26157.0,26154.0,0.33085655]
[1693570983508,0.64052783,26156.0,26154.0,0.33185655]
[1693570983926,0.63552783,26156.0,26154.0,0.33185655]
[1693570984304,0.63552783,26156.0,26154.0,0.308]
[1693570985086,0.63552783,26156.0,26154.0,0.309]
[1693570985478,0.63552783,26156.0,26154.0,0.301]
[1693570985879,0.26774015,26155.0,26154.0,0.309]
[1693570986084,0.1505,26157.0,26154.0,0.309]
[1693570986387,0.1505,26157.0,26154.0,0.301]
[1693570986792,0.1505,26157.0,26155.0,0.03098749]
[1693570987190,0.005,26156.0,26155.0,0.03098749]
[1693570987425,0.39208678,26156.0,26155.0,0.03098749]
[1693570987835,0.21705132,26155.0,26154.0,0.303]
[1693570988039,0.21705132,26155.0,26154.0,0.302]
[1693570989004,0.21805132,26155.0,26154.0,0.329]
[1693570990184,0.6051381,26155.0,26154.0,0.329]
[1693570990387,0.38808678,26155.0,26154.0,0.029]
[1693570990654,0.81118678,26155.0,26154.0,0.029]
[1693570990854,0.87808678,26155.0,26154.0,0.029]
[1693570991059,0.88582678,26155.0,26154.0,0.027]
[1693570991256,0.88414678,26155.0,26154.0,0.027]
[1693570991475,0.88588678,26155.0,26154.0,0.027]
[1693570991678,0.88588678,26155.0,26146.0,0.03839]
[1693570991679,0.88422678,26155.0,26146.0,0.03839]
[1693570991893,0.156,26153.0,26152.0,0.153036]
[1693570992095,0.54308678,26153.0,26152.0,0.153036]
[1693570993731,0.54308678,26153.0,26152.0,0.18238396]
[1693570994009,0.79229862,26153.0,26152.0,0.18238396]
[1693570994209,0.79329862,26153.0,26152.0,0.19638396]
[1693570994435,0.63729862,26153.0,26152.0,0.21738396]
[1693570994722,0.38808678,26153.0,26152.0,0.188036]
[1693570994940,0.61014798,26153.0,26152.0,0.188036]
[1693570996689,0.76614798,26153.0,26152.0,0.188036]
[1693570998518,0.61014798,26153.0,26152.0,0.188036]
[1693570998720,0.001,26153.0,26152.0,0.188036]
[1693570999087,0.001,26153.0,26152.0,0.488036]
[1693570999289,0.001,26153.0,26152.0,0.51763997]
[1693571000502,0.38808678,26153.0,26152.0,0.21763997]
[1693571000705,0.96718678,26153.0,26152.0,0.06460397]
[1693571001076,1.05490678,26153.0,26152.0,0.06460397]
[1693571001280,1.19776127,26153.0,26152.0,0.06460397]
[1693571001486,1.19776127,26153.0,26152.0,0.021]
[1693571001487,1.05978678,26153.0,26152.0,0.021]
[1693571001689,1.2218197,26153.0,26147.0,0.3]
[1693571001893,0.79018678,26152.0,26149.0,0.15305]
[1693571002100,0.156,26150.0,26149.0,0.15305]
[1693571002304,0.54308678,26150.0,26149.0,0.45305]
[1693571002481,0.38708678,26150.0,26149.0,0.45305]
[1693571002830,0.5591,26152.0,26149.0,0.45305]
[1693571003040,0.38708678,26151.0,26150.0,0.3]
[1693571004282,0.62161785,26151.0,26150.0,0.3]
[1693571004693,0.62261785,26151.0,26150.0,0.315]
[1693571004894,0.62261785,26151.0,26150.0,0.336]
[1693571005950,0.001,26151.0,26150.0,0.336]
[1693571009041,0.001,26151.0,26150.0,0.36413966]
[1693571014960,0.58637419,26151.0,26150.0,0.36413966]
[1693571015142,0.38808678,26151.0,26150.0,0.36413966]
[1693571021143,0.63374722,26151.0,26150.0,0.36413966]
[1693571022836,0.38808678,26151.0,26150.0,0.36413966]
[1693571023200,0.61025725,26151.0,26150.0,0.36413966]
[1693571026408,0.76625725,26151.0,26150.0,0.36413966]
[1693571028363,0.54408678,26151.0,26150.0,0.36413966]
[1693571030938,0.001,26151.0,26150.0,0.36413966]
[1693571032736,0.78026814,26151.0,26150.0,0.36413966]
[1693571034002,0.50518678,26151.0,26150.0,0.36413966]
[1693571037529,0.1181,26151.0,26150.0,0.36413966]
[1693571038147,0.001,26151.0,26150.0,0.36413966]
[1693571039885,0.001,26151.0,26150.0,0.72695432]
[1693571040084,0.34641429,26159.0,26151.0,0.02]
[1693571040290,0.47870107,26159.0,26152.0,0.36293663]
[1693571040495,0.47870107,26159.0,26153.0,0.3]
[1693571040787,0.47870107,26159.0,26154.0,0.15483471]
[1693571040988,0.47870107,26159.0,26155.0,0.3]
[1693571041236,0.47870107,26159.0,26155.0,0.45483471]
[1693571041609,0.25679356,26158.0,26155.0,0.3]
[1693571041834,0.50418678,26157.0,26155.0,0.3]
[1693571042050,0.50418678,26157.0,26155.0,0.003]
[1693571042453,0.50418678,26157.0,26152.0,0.02927224]
[1693571042654,0.1171,26156.0,26152.0,0.02927224]
[1693571042892,0.1171,26153.0,26152.0,0.02927224]
[1693571043445,0.35463648,26153.0,26149.0,0.15305]
[1693571043670,0.74172326,26153.0,26149.0,0.15305]
[1693571043895,0.74172326,26153.0,26151.0,0.003]
[1693571044115,0.38708678,26153.0,26151.0,0.003]
[1693571044314,0.38708678,26153.0,26150.0,0.3]
[1693571044930,0.39108678,26153.0,26150.0,0.3]
[1693571045132,0.40108678,26153.0,26150.0,0.3]
[1693571045339,0.39108678,26153.0,26150.0,0.3]
[1693571045750,0.40108678,26153.0,26150.0,0.3]
[1693571046554,0.39708678,26153.0,26150.0,0.3]
[1693571046760,0.40108678,26153.0,26150.0,0.3]
[1693571047160,0.56048678,26153.0,26150.0,0.3]
[1693571047579,0.82282148,26153.0,26150.0,0.3]
[1693571048225,0.23195127,26152.0,26150.0,0.3]
[1693571049039,0.56048678,26153.0,26150.0,0.3]
[1693571049238,0.55648678,26153.0,26150.0,0.3]
[1693571049574,0.1594,26153.0,26150.0,0.308]
[1693571049745,0.1594,26155.0,26150.0,0.308]
[1693571049946,0.1594,26155.0,26150.0,0.45483471]
[1693571049947,0.38708678,26154.0,26150.0,0.45483471]
[1693571050147,0.38708678,26154.0,26150.0,0.3]
[1693571050445,0.004,26153.0,26150.0,0.3]
[1693571050923,0.1592,26153.0,26150.0,0.3]
[1693571051137,0.1592,26153.0,26150.0,0.301]
[1693571051290,0.1592,26153.0,26150.0,0.303]
[1693571051489,0.42136463,26153.0,26150.0,0.301]
[1693571051888,0.43136463,26153.0,26150.0,0.301]
[1693571052090,0.26322421,26152.0,26150.0,0.301]
[1693571052886,0.26322421,26152.0,26150.0,0.3]
[1693571054079,0.26322421,26152.0,26150.0,0.308]
[1693571054294,0.26322421,26152.0,26151.0,0.02802243]
[1693571054677,0.26322421,26152.0,26150.0,0.31]
[1693571055098,0.26322421,26152.0,26150.0,0.308]
[1693571055432,0.26322421,26152.0,26151.0,0.002]
[1693571055819,0.26322421,26152.0,26150.0,0.308]
[1693571056384,0.38708678,26151.0,26150.0,0.3]
[1693571056583,0.79018678,26151.0,26150.0,0.302]
[1693571056833,0.81018678,26151.0,26150.0,0.302]
[1693571057451,0.81018678,26151.0,26150.0,0.323]
[1693571057661,0.38708678,26151.0,26150.0,0.323]
[1693571057998,0.38708678,26151.0,26150.0,0.3]
[1693571058362,0.39408678,26151.0,26150.0,0.017]
[1693571058795,0.39308678,26151.0,26150.0,0.002]
[1693571059073,0.3057339,26151.0,26150.0,0.005]
[1693571059293,0.69282068,26151.0,26150.0,0.005]
[1693571062139,0.026,26151.0,26150.0,0.005]
[1693571062336,0.021,26151.0,26150.0,0.005]
[1693571063389,0.66845425,26151.0,26150.0,0.005]
[1693571069335,0.66845425,26151.0,26150.0,0.03367394]
[1693571071948,0.78555425,26151.0,26150.0,0.03367394]
[1693571072932,0.52518678,26151.0,26150.0,0.03367394]
[1693571073695,0.40808678,26151.0,26150.0,0.03367394]
[1693571074712,0.52518678,26151.0,26150.0,0.03367394]
[1693571077063,0.40808678,26151.0,26150.0,0.03367394]
[1693571078966,0.62781793,26151.0,26150.0,0.03367394]
[1693571079480,0.74491793,26151.0,26150.0,0.03367394]
[1693571080458,0.92828678,26151.0,26150.0,0.03367394]
[1693571080667,1.24482857,26151.0,26150.0,0.03367394]
[1693571080867,1.24482857,26151.0,26150.0,0.005]
[1693571080868,1.23366857,26151.0,26150.0,0.005]
[1693571081102,1.25620362,26151.0,26150.0,0.005]
[1693571084182,0.98828678,26151.0,26150.0,0.005]
[1693571084384,1.06400678,26151.0,26150.0,0.005]
[1693571084520,1.06436678,26151.0,26150.0,0.005]
[1693571084726,1.06478678,26151.0,26150.0,0.005]
[1693571085069,1.06454678,26151.0,26150.0,0.005]
[1693571085273,1.06538678,26151.0,26150.0,0.005]
[1693571085418,1.06094678,26151.0,26150.0,0.005]
[1693571085600,1.06144028,26151.0,26150.0,0.005]
[1693571085800,1.06174028,26151.0,26150.0,0.005]